[Event "3rd Rio Open-Blitz 2024"]
[Site "Rio de Janeiro"]
[Date "2024.04.27"]
[Round "9.1"]
[White "Oliveira, Fernando Ventura"]
[Black "Fier, Alexandr"]
[Result "0-1"]
[ECO "B02"]
[WhiteElo "2044"]
[BlackElo "2566"]
[Annotator "ChessBase"]
[PlyCount "82"]
[EventDate "2024.04.12"]
[EventType "swiss"]
[EventCountry "BRA"]
[SourceTitle "playchess.com"]
[Source "ChessBase"]
[SourceQuality "1"]
[TimeControl "180+2"]

1. e4 {[%emt 0:00:02]} Nf6 {[%emt 0:00:01]} 2. e5 {[%emt 0:00:03]} Nd5 {[%emt 0:00:00]} 3. c4 {[%emt 0:00:00]} Nb6 {[%emt 0:00:01]} 4. c5 {[%emt 0:00:01]} Nd5 {[%emt 0:00:01]} 5. Nc3 {[%emt 0:00:01]} e6 {[%emt 0:00:01]} 6. d4 {[%emt 0:00:01]} b6 {[%emt 0:00:01]} 7. cxb6 {[%emt 0:00:03]} Nxc3 {[%emt 0:00:03]} 8. bxc3 {[%emt 0:00:01]} axb6 {[%emt 0:00:00]} 9. Nf3 {[%emt 0:00:04]} Ba6 {[%emt 0:00:02]} 10. Bd3 {[%emt 0:00:04]} Bxd3 {[%emt 0:00:10]} 11. Qxd3 {[%emt 0:00:01]} Nc6 {[%emt 0:00:01]} 12. O-O {[%emt 0:00:04]} Qc8 {[%emt 0:00:01]} 13. Be3 {[%emt 0:00:14]} Qa6 {[%emt 0:00:03]} 14. Qxa6 {[%emt 0:00:05]} Rxa6 {[%emt 0:00:02]} 15. a4 {[%emt 0:00:03]} d5 {[%emt 0:00:05]} 16. exd6 {[%emt 0:00:05]} Bxd6 {[%emt 0:00:02]} 17. c4 {[%emt 0:00:10]} Kd7 {[%emt 0:00:18]} 18. c5 {[%emt 0:00:07]} Be7 {[%emt 0:00:02]} 19. Rfd1 {[%emt 0:00:01]} bxc5 {[%emt 0:00:09]} 20. dxc5+ {[%emt 0:00:04]} Kc8 {[%emt 0:00:01]} 21. h4 {[%emt 0:00:10]} Rd8 {[%emt 0:00:07]} 22. Rdc1 {[%emt 0:00:14]} Rd5 {[%emt 0:00:04]} 23. Rc4 {[%emt 0:00:05]} Kd7 {[%emt 0:00:12]} 24. Kf1 {[%emt 0:00:02]} f6 {[%emt 0:00:01]} 25. Ke2 {[%emt 0:00:03]} e5 {[%emt 0:00:01]} 26. Nd2 {[%emt 0:00:05]} Ke6 {[%emt 0:00:02]} 27. f3 {[%emt 0:00:04]} f5 {[%emt 0:00:02]} 28. g4 {[%emt 0:00:03]} g6 {[%emt 0:00:04]} 29. gxf5+ {[%emt 0:00:03]} gxf5 {[%emt 0:00:01]} 30. f4 {[%emt 0:00:06]} e4 {[%emt 0:00:01]} 31. Nb3 {[%emt 0:00:03]} Rd8 {[%emt 0:00:09]} 32. Rg1 {[%emt 0:00:10]} Bf6 {[%emt 0:00:02]} 33. h5 {[%emt 0:00:06]} Rd3 {[%emt 0:00:05]} 34. Nd2 {[%emt 0:00:17]} Bd4 {[%emt 0:00:03]} 35. Nf1 {[%emt 0:00:44]} Kd5 {[%emt 0:00:01]} 36. Rc2 {[%emt 0:00:08]} Rxa4 {[%emt 0:00:02]} 37. Rg5 {[%emt 0:00:06]} Raa3 {[%emt 0:00:00]} 38. Rg3 {[%emt 0:00:16]} Bxe3 {[%emt 0:00:04]} 39. Nxe3+ {[%emt 0:00:02]} Rxe3+ {[%emt 0:00:01]} 40. Rxe3 {[%emt 0:00:02]} Nd4+ {[%emt 0:00:01]} 41. Kd2 {[%emt 0:00:08]} Rxe3 {[%emt 0:00:01]} 0-1

[Event "3rd Rio Open-Blitz 2024"]
[Site "Rio de Janeiro"]
[Date "2024.04.27"]
[Round "9.2"]
[White "Ribeiro, Matheus Mendes Domin"]
[Black "Labussiere, Yago"]
[Result "1/2-1/2"]
[ECO "E61"]
[WhiteElo "2228"]
[BlackElo "2184"]
[Annotator "NA RC"]
[PlyCount "162"]
[EventDate "2024.04.12"]
[EventType "swiss"]
[EventCountry "BRA"]
[SourceTitle "playchess.com"]
[Source "ChessBase"]
[SourceQuality "1"]
[TimeControl "180+2"]

1. c4 {[%emt 0:00:01]} e5 {[%emt 0:00:00]} 2. g3 {[%emt 0:00:04]} Nc6 {[%emt 0:00:02]} 3. Bg2 {[%emt 0:00:02]} g6 {[%emt 0:00:01]} 4. Nc3 {[%emt 0:00:01]} Bg7 {[%emt 0:00:01]} 5. e3 {[%emt 0:00:02]} d6 {[%emt 0:00:01]} 6. Nge2 {[%emt 0:00:01]} Nf6 {[%emt 0:00:05]} 7. O-O {[%emt 0:00:02]} O-O {[%emt 0:00:01]} 8. d4 {[%emt 0:00:01]} exd4 {[%emt 0:00:07]} 9. exd4 {[%emt 0:00:01]} Re8 {[%emt 0:00:02]} 10. Bg5 {[%emt 0:00:19]} h6 {[%emt 0:00:06]} 11. Bxf6 {[%emt 0:00:14]} Bxf6 {[%emt 0:00:02]} 12. Qd2 {[%emt 0:00:02]} Bg7 {[%emt 0:00:01]} 13. Rfe1 {[%emt 0:00:03]} Bg4 {[%emt 0:00:06]} 14. Rad1 {[%emt 0:00:38]} Qd7 {[%emt 0:00:11]} 15. f3 {[%emt 0:00:22]} Bh3 {[%emt 0:00:05]} 16. b3 {[%emt 0:00:05]} Bxg2 {[%emt 0:00:10]} 17. Kxg2 {[%emt 0:00:01]} h5 {[%emt 0:00:01]} 18. h4 {[%emt 0:00:15]} a6 {[%emt 0:00:10]} 19. Nd5 {[%emt 0:00:04]} Ne7 {[%emt 0:00:11]} 20. Nxe7+ {[%emt 0:00:01]} Rxe7 {[%emt 0:00:01]} 21. Nf4 {[%emt 0:00:01]} Rxe1 {[%emt 0:00:24]} 22. Rxe1 {[%emt 0:00:02]} Bh6 {[%emt 0:00:04]} 23. Qe3 {[%emt 0:00:09]} Qf5 {[%emt 0:00:24]} 24. Qe4 {[%emt 0:00:05]} Bxf4 {[%emt 0:00:12]} 25. Qxf5 {[%emt 0:00:03]} gxf5 {[%emt 0:00:01]} 26. gxf4 {[%emt 0:00:01]} Kf8 {[%emt 0:00:08]} 27. Kf2 {[%emt 0:00:00]} f6 {[%emt 0:00:02]} 28. d5 {[%emt 0:00:23]} b6 {[%emt 0:00:21]} 29. a3 {[%emt 0:00:11]} a5 {[%emt 0:00:01]} 30. Re6 {[%emt 0:00:06]} Kf7 {[%emt 0:00:02]} 31. Re1 {[%emt 0:00:03]} Re8 {[%emt 0:00:04]} 32. Rc1 {[%emt 0:00:08]} Ra8 {[%emt 0:00:19]} 33. Rc2 {[%emt 0:00:11]} Ra7 {[%emt 0:00:10]} 34. Rc3 {[%emt 0:00:04]} Ra8 {[%emt 0:00:00]} 35. Rc1 {[%emt 0:00:01]} Ra7 {[%emt 0:00:01]} 36. Ke3 {[%emt 0:00:05]} Ra8 {[%emt 0:00:01]} 37. Rg1 {[%emt 0:00:05]} Re8+ {[%emt 0:00:10]} 38. Kd3 {[%emt 0:00:02]} Ra8 {[%emt 0:00:03]} 39. Rg2 {[%emt 0:00:03]} Re8 {[%emt 0:00:02]} 40. Rg1 {[%emt 0:00:05]} Ra8 {[%emt 0:00:01]} 41. Kc3 {[%emt 0:00:09]} Re8 {[%emt 0:00:01]} 42. Kd3 {[%emt 0:00:01]} Ra8 {[%emt 0:00:00]} 43. Rg2 {[%emt 0:00:05]} Re8 {[%emt 0:00:04]} 44. Rg1 {[%emt 0:00:03]} Ra8 {[%emt 0:00:01]} 45. Kd2 {[%emt 0:00:00]} Re8 {[%emt 0:00:03]} 46. Rg2 {[%emt 0:00:03]} Ra8 {[%emt 0:00:02]} 47. Kc3 {[%emt 0:00:02]} Re8 {[%emt 0:00:00]} 48. b4 {[%emt 0:00:02]} Re3+ {[%emt 0:00:10]} 49. Kd4 {[%emt 0:00:00]} Rxa3 {[%emt 0:00:08]} 50. bxa5 {[%emt 0:00:01]} Rxa5 {[%emt 0:00:03]} 51. Rg1 {[%emt 0:00:03]} Ra3 {[%emt 0:00:02]} 52. Rf1 {[%emt 0:00:04]} Ra2 {[%emt 0:00:01]} 53. Kc3 {[%emt 0:00:02]} Rh2 {[%emt 0:00:07]} 54. Kb4 {[%emt 0:00:00]} Rb2+ {[%emt 0:00:04]} 55. Kc3 {[%emt 0:00:01]} Ra2 {[%emt 0:00:01]} 56. Kb4 {[%emt 0:00:00]} Ra5 {[%emt 0:00:01]} 57. Rg1 {[%emt 0:00:04]} Rc5 {[%emt 0:00:05]} 58. Rg2 {[%emt 0:00:01]} b5 {[%emt 0:00:01]} 59. cxb5 {[%emt 0:00:03]} Rxd5 {[%emt 0:00:00]} 60. Rc2 {[%emt 0:00:01]} Rd4+ {[%emt 0:00:02]} 61. Ka5 {[%emt 0:00:01]} Rxf4 {[%emt 0:00:07]} 62. Rxc7+ {[%emt 0:00:00]} Ke8 {[%emt 0:00:04]} 63. b6 {[%emt 0:00:01]} Kd8 {[%emt 0:00:01]} 64. Rh7 {[%emt 0:00:03]} Kc8 {[%emt 0:00:03]} 65. Ka6 {[%emt 0:00:05]} Ra4+ {[%emt 0:00:01]} 66. Kb5 {[%emt 0:00:01]} Ra3 {[%emt 0:00:00]} 67. Kc6 {[%emt 0:00:01]} Rc3+ {[%emt 0:00:01]} 68. Kxd6 {[%emt 0:00:02]} Rxf3 {[%emt 0:00:04]} 69. Ke6 {[%emt 0:00:02]} Rb3 {[%emt 0:00:04]} 70. Rxh5 {[%emt 0:00:05]} Rxb6+ {[%emt 0:00:01]} 71. Kxf5 {[%emt 0:00:02]} Kd7 {[%emt 0:00:00]} 72. Rh7+ {[%emt 0:00:02]} Ke8 {[%emt 0:00:01]} 73. h5 {[%emt 0:00:02]} Kf8 {[%emt 0:00:01]} 74. h6 {[%emt 0:00:01]} Kg8 {[%emt 0:00:01]} 75. Ra7 {[%emt 0:00:01]} Rb1 {[%emt 0:00:02]} 76. Kxf6 {[%emt 0:00:03]} Kh8 {[%emt 0:00:01]} 77. h7 {[%emt 0:00:02]} Rf1+ {[%emt 0:00:02]} 78. Kg5 {[%emt 0:00:01]} Rg1+ {[%emt 0:00:01]} 79. Kf4 {[%emt 0:00:01]} Rg7 {[%emt 0:00:02]} 80. Rxg7 {[%emt 0:00:01]} Kxg7 {[%emt 0:00:01]} 81. h8=Q+ {[%emt 0:00:02]} Kxh8 {[%emt 0:00:01]} 1/2-1/2

[Event "3rd Rio Open-Blitz 2024"]
[Site "Rio de Janeiro"]
[Date "2024.04.27"]
[Round "9.3"]
[White "Becker, Rogerio Sperb"]
[Black "Lage, Pedro Ferreira"]
[Result "1-0"]
[ECO "A11"]
[WhiteElo "2054"]
[BlackElo "2061"]
[Annotator "NA"]
[PlyCount "72"]
[EventDate "2024.04.12"]
[EventType "swiss"]
[EventCountry "BRA"]
[SourceTitle "playchess.com"]
[Source "ChessBase"]
[SourceQuality "1"]
[TimeControl "180+2"]

1. c4 {[%emt 0:00:00]} c6 {[%emt 0:00:02]} 2. Nf3 {[%emt 0:00:03]} d5 {[%emt 0:00:02]} 3. g3 {[%emt 0:00:00]} Nf6 {[%emt 0:00:01]} 4. Bg2 {[%emt 0:00:01]} dxc4 {[%emt 0:00:03]} 5. a4 {[%emt 0:00:03]} Bf5 {[%emt 0:00:02]} 6. Na3 {[%emt 0:03:07]} Nbd7 {[%emt 0:00:03]} 7. Nxc4 {[%emt 0:00:00]} e6 {[%emt 0:00:13]} 8. d3 {[%emt 0:00:00]} Be7 {[%emt 0:00:02]} 9. O-O {[%emt 0:00:00]} O-O {[%emt 0:00:02]} 10. a5 {[%emt 0:00:00]} Nc5 {[%emt 0:00:27]} 11. Nfe5 {[%emt 0:00:00]} Nfd7 {[%emt 0:00:03]} 12. a6 {[%emt 0:00:00]} Nxa6 {[%emt 0:00:06]} 13. Nxc6 {[%emt 0:00:00]} bxc6 {[%emt 0:00:22]} 14. Rxa6 {[%emt 0:00:00]} Nb6 {[%emt 0:00:17]} 15. Ne5 {[%emt 0:00:00]} Qc8 {[%emt 0:00:25]} 16. Ra1 {[%emt 0:00:00]} Bf6 {[%emt 0:00:21]} 17. Nxc6 {[%emt 0:00:00]} Qc7 {[%emt 0:00:01]} 18. Bf4 {[%emt 0:00:00]} e5 {[%emt 0:00:02]} 19. Be3 {[%emt 0:00:00]} Bd7 {[%emt 0:00:36]} 20. Nb4 {[%emt 0:00:00]} Rac8 {[%emt 0:00:03]} 21. Bxb6 {[%emt 0:00:00]} axb6 {[%emt 0:00:04]} 22. Nd5 {[%emt 0:00:00]} Qd6 {[%emt 0:00:04]} 23. Nxf6+ {[%emt 0:00:00]} Qxf6 {[%emt 0:00:01]} 24. Qb3 {[%emt 0:00:00]} Bg4 {[%emt 0:00:11]} 25. Rfe1 {[%emt 0:00:00]} Rc5 {[%emt 0:00:08]} 26. h4 {[%emt 0:00:00]} Rfc8 {[%emt 0:00:02]} 27. Qb4 {[%emt 0:00:00]} Bd7 {[%emt 0:00:06]} 28. Bf3 {[%emt 0:00:10]} Rb5 {[%emt 0:00:04]} 29. Qa3 {[%emt 0:00:03]} Qe6 {[%emt 0:00:07]} 30. Rec1 {[%emt 0:00:06]} Rb3 {[%emt 0:00:00]} 31. Rxc8+ {[%emt 0:00:03]} Bxc8 {[%emt 0:00:00]} 32. Qa8 {[%emt 0:00:04]} Qe8 {[%emt 0:00:02]} 33. Rc1 {[%emt 0:00:04]} Bd7 {[%emt 0:00:01]} 34. Qxe8+ {[%emt 0:00:02]} Bxe8 {[%emt 0:00:01]} 35. Rc8 {[%emt 0:00:01]} Kf8 {[%emt 0:00:00]} 36. Bc6 {[%emt 0:00:02]} Rb5 {[%emt 0:00:10]} 1-0

[Event "3rd Rio Open-Blitz 2024"]
[Site "Rio de Janeiro"]
[Date "2024.04.27"]
[Round "9.4"]
[White "Guimaraes, Lucas Dos S Peixoto"]
[Black "De Siqueira, Luigy Lira"]
[Result "0-1"]
[ECO "C54"]
[WhiteElo "2019"]
[BlackElo "2274"]
[Annotator "NA RC"]
[PlyCount "70"]
[EventDate "2024.04.12"]
[EventType "swiss"]
[EventCountry "BRA"]
[SourceTitle "playchess.com"]
[Source "ChessBase"]
[SourceQuality "1"]
[TimeControl "180+2"]

1. e4 {[%emt 0:00:02]} e5 {[%emt 0:00:01]} 2. Nf3 {[%emt 0:00:01]} Nc6 {[%emt 0:00:01]} 3. Bc4 {[%emt 0:00:01]} Bc5 {[%emt 0:00:02]} 4. c3 {[%emt 0:00:01]} Nf6 {[%emt 0:00:01]} 5. d4 {[%emt 0:00:01]} exd4 {[%emt 0:00:02]} 6. e5 {[%emt 0:00:01]} d5 {[%emt 0:00:01]} 7. Bb5 {[%emt 0:00:00]} Ne4 {[%emt 0:00:02]} 8. cxd4 {[%emt 0:00:01]} Bb6 {[%emt 0:00:01]} 9. Nc3 {[%emt 0:00:02]} O-O {[%emt 0:00:02]} 10. Be3 {[%emt 0:00:05]} f5 {[%emt 0:00:02]} 11. exf6 {[%emt 0:00:12]} Nxf6 {[%emt 0:00:06]} 12. Bxc6 {[%emt 0:00:04]} bxc6 {[%emt 0:00:01]} 13. Ne5 {[%emt 0:00:13]} Qd6 {[%emt 0:00:07]} 14. h3 {[%emt 0:00:10]} c5 {[%emt 0:00:09]} 15. Nb5 {[%emt 0:00:12]} Qe7 {[%emt 0:00:01]} 16. O-O {[%emt 0:00:29]} cxd4 {[%emt 0:00:14]} 17. Nc6 {[%emt 0:00:04]} Qd7 {[%emt 0:00:25]} 18. Nbxd4 {[%emt 0:00:02]} Bb7 {[%emt 0:00:10]} 19. Ne5 {[%emt 0:00:41]} Qe8 {[%emt 0:00:07]} 20. Nef3 {[%emt 0:00:11]} c5 {[%emt 0:00:08]} 21. Nc2 {[%emt 0:00:02]} d4 {[%emt 0:00:03]} 22. Bg5 {[%emt 0:00:01]} Ne4 {[%emt 0:00:04]} 23. Re1 {[%emt 0:00:02]} Qh5 {[%emt 0:00:11]} 24. Bh4 {[%emt 0:00:18]} Bc7 {[%emt 0:00:32]} 25. Bg3 {[%emt 0:00:27]} Nxg3 {[%emt 0:00:06]} 26. fxg3 {[%emt 0:00:01]} Bxg3 {[%emt 0:00:02]} 27. Re7 {[%emt 0:00:01]} Bxf3 {[%emt 0:00:08]} 28. gxf3 {[%emt 0:00:02]} Qxh3 {[%emt 0:00:19]} 29. Qd2 {[%emt 0:00:05]} Rxf3 {[%emt 0:00:13]} 30. Rae1 {[%emt 0:00:01]} Bxe1 {[%emt 0:00:06]} 31. Nxe1 {[%emt 0:00:02]} Qg4+ {[%emt 0:00:15]} 32. Ng2 {[%emt 0:00:04]} Raf8 {[%emt 0:00:04]} 33. Qe2 {[%emt 0:00:16]} Qg3 {[%emt 0:00:12]} 34. Qe6+ {[%emt 0:00:09]} Kh8 {[%emt 0:00:01]} 35. Re8 {[%emt 0:00:03]} Rf1# {[%emt 0:00:03]} 0-1

[Event "3rd Rio Open-Blitz 2024"]
[Site "Rio de Janeiro"]
[Date "2024.04.27"]
[Round "9.5"]
[White "Librelato, Kathie Goulart"]
[Black "Azevedo, Edmundo Roberto Ramo"]
[Result "1-0"]
[ECO "B01"]
[WhiteElo "2165"]
[BlackElo "1917"]
[Annotator "NA"]
[PlyCount "89"]
[EventDate "2024.04.12"]
[EventType "swiss"]
[EventCountry "BRA"]
[SourceTitle "playchess.com"]
[Source "ChessBase"]
[SourceQuality "1"]
[TimeControl "180+2"]

1. e4 {[%emt 0:00:01]} d5 {[%emt 0:00:01]} 2. exd5 {[%emt 0:00:01]} Qxd5 {[%emt 0:00:02]} 3. Nc3 {[%emt 0:00:01]} Qd8 {[%emt 0:00:01]} 4. d4 {[%emt 0:00:01]} c6 {[%emt 0:00:01]} 5. Nf3 {[%emt 0:00:03]} Bg4 {[%emt 0:00:01]} 6. Be2 {[%emt 0:00:01]} e6 {[%emt 0:00:01]} 7. h3 {[%emt 0:00:02]} Bh5 {[%emt 0:00:01]} 8. g4 {[%emt 0:00:06]} Bg6 {[%emt 0:00:01]} 9. Ne5 {[%emt 0:00:01]} Nd7 {[%emt 0:00:01]} 10. Nxg6 {[%emt 0:00:29]} hxg6 {[%emt 0:00:02]} 11. Bf4 {[%emt 0:00:03]} Ngf6 {[%emt 0:00:04]} 12. Qd2 {[%emt 0:00:05]} Qa5 {[%emt 0:00:05]} 13. a3 {[%emt 0:00:01]} Bb4 {[%emt 0:00:03]} 14. O-O-O {[%emt 0:00:17]} Bxc3 {[%emt 0:00:02]} 15. Qxc3 {[%emt 0:00:02]} Qxc3 {[%emt 0:00:03]} 16. bxc3 {[%emt 0:00:02]} Nd5 {[%emt 0:00:07]} 17. Bd2 {[%emt 0:00:01]} N7b6 {[%emt 0:00:12]} 18. c4 {[%emt 0:00:02]} Ne7 {[%emt 0:00:05]} 19. c5 {[%emt 0:00:04]} Nbd5 {[%emt 0:00:02]} 20. c4 {[%emt 0:00:01]} Nf6 {[%emt 0:00:06]} 21. Bf3 {[%emt 0:00:14]} O-O-O {[%emt 0:00:12]} 22. Ba5 {[%emt 0:00:11]} Rd7 {[%emt 0:00:06]} 23. Kc2 {[%emt 0:00:02]} b6 {[%emt 0:00:35]} 24. cxb6 {[%emt 0:00:03]} axb6 {[%emt 0:00:01]} 25. Bxb6 {[%emt 0:00:02]} Kb7 {[%emt 0:00:02]} 26. Rb1 {[%emt 0:00:02]} Ra8 {[%emt 0:00:08]} 27. Bc5+ {[%emt 0:00:06]} Kc8 {[%emt 0:00:02]} 28. Rb6 {[%emt 0:00:07]} Rb8 {[%emt 0:00:13]} 29. Rhb1 {[%emt 0:00:02]} Rxb6 {[%emt 0:00:01]} 30. Rxb6 {[%emt 0:00:02]} Ne8 {[%emt 0:00:20]} 31. Bxe7 {[%emt 0:00:20]} Rxe7 {[%emt 0:00:02]} 32. Rxc6+ {[%emt 0:00:02]} Kd7 {[%emt 0:00:04]} 33. a4 {[%emt 0:00:04]} Nd6 {[%emt 0:00:13]} 34. a5 {[%emt 0:00:04]} Nc8 {[%emt 0:00:09]} 35. a6 {[%emt 0:00:07]} e5 {[%emt 0:00:06]} 36. d5 {[%emt 0:00:24]} e4 {[%emt 0:00:23]} 37. Be2 {[%emt 0:00:01]} Kd8 {[%emt 0:00:06]} 38. d6 {[%emt 0:00:07]} Re6 {[%emt 0:00:14]} 39. c5 {[%emt 0:00:02]} e3 {[%emt 0:00:05]} 40. f3 {[%emt 0:00:05]} Re5 {[%emt 0:00:14]} 41. Rc7 {[%emt 0:00:17]} Rd5 {[%emt 0:00:07]} 42. Bb5 {[%emt 0:00:38]} Rd2+ {[%emt 0:00:02]} 43. Kc3 {[%emt 0:00:02]} Ra2 {[%emt 0:00:02]} 44. Rd7+ {[%emt 0:00:02]} Ke8 {[%emt 0:00:02]} 45. Re7+ {[%emt 0:00:02]} 1-0

[Event "3rd Rio Open-Blitz 2024"]
[Site "Rio de Janeiro"]
[Date "2024.04.27"]
[Round "9.6"]
[White "Mafra, Kaiser Luiz"]
[Black "Zacarias, Rodrigo Medeiros"]
[Result "0-1"]
[ECO "B23"]
[WhiteElo "2074"]
[BlackElo "2101"]
[Annotator "NA"]
[PlyCount "64"]
[EventDate "2024.04.12"]
[EventType "swiss"]
[EventCountry "BRA"]
[SourceTitle "playchess.com"]
[Source "ChessBase"]
[SourceQuality "1"]
[TimeControl "180+2"]

1. e4 {[%emt 0:00:02]} c5 {[%emt 0:00:01]} 2. Nc3 {[%emt 0:00:01]} e6 {[%emt 0:00:02]} 3. f4 {[%emt 0:00:06]} Nc6 {[%emt 0:00:06]} 4. Nf3 {[%emt 0:00:01]} a6 {[%emt 0:00:03]} 5. g3 {[%emt 0:00:03]} d6 {[%emt 0:00:04]} 6. Bg2 {[%emt 0:00:02]} g6 {[%emt 0:00:03]} 7. d4 {[%emt 0:00:16]} cxd4 {[%emt 0:00:06]} 8. Nxd4 {[%emt 0:00:02]} Bg7 {[%emt 0:00:07]} 9. Nxc6 {[%emt 0:00:09]} bxc6 {[%emt 0:00:02]} 10. e5 {[%emt 0:00:04]} d5 {[%emt 0:00:06]} 11. Be3 {[%emt 0:00:07]} Ne7 {[%emt 0:00:06]} 12. O-O {[%emt 0:00:07]} O-O {[%emt 0:00:03]} 13. Na4 {[%emt 0:00:09]} a5 {[%emt 0:00:29]} 14. Nb6 {[%emt 0:00:30]} Ba6 {[%emt 0:00:24]} 15. Nxa8 {[%emt 0:00:20]} Bxf1 {[%emt 0:00:04]} 16. Nb6 {[%emt 0:00:02]} Bxg2 {[%emt 0:00:40]} 17. Kxg2 {[%emt 0:00:01]} Nf5 {[%emt 0:00:09]} 18. Bf2 {[%emt 0:00:06]} d4 {[%emt 0:00:10]} 19. Na4 {[%emt 0:00:18]} Qd5+ {[%emt 0:00:05]} 20. Qf3 {[%emt 0:00:03]} Qc4 {[%emt 0:00:10]} 21. Qb3 {[%emt 0:00:18]} Qe2 {[%emt 0:00:12]} 22. Kg1 {[%emt 0:00:17]} Rd8 {[%emt 0:00:12]} 23. Re1 {[%emt 0:00:12]} Qb5 {[%emt 0:00:10]} 24. Qxb5 {[%emt 0:00:09]} cxb5 {[%emt 0:00:01]} 25. Nc5 {[%emt 0:00:14]} Rc8 {[%emt 0:00:03]} 26. Nb3 {[%emt 0:00:02]} Rxc2 {[%emt 0:00:07]} 27. Nxd4 {[%emt 0:00:01]} Rxb2 {[%emt 0:00:07]} 28. Nxf5 {[%emt 0:00:02]} gxf5 {[%emt 0:00:02]} 29. Rd1 {[%emt 0:00:03]} Bf8 {[%emt 0:00:02]} 30. Rd8 {[%emt 0:00:03]} Kg7 {[%emt 0:00:00]} 31. Bb6 {[%emt 0:00:10]} Rxa2 {[%emt 0:00:04]} 32. h4 {[%emt 0:00:06]} h5 {[%emt 0:00:06]} 0-1